bitfinex/quotes_ETHUSD_20240702
["timestamp","ask_amount","ask_price","bid_price","bid_amount"]
[1719942016505,2.2577,3421.8,3421.2,2.92292]
[1719942017567,2.2577,3421.8,3421.3,3.0]
[1719942017863,2.2577,3421.8,3421.1,5.92296]
[1719942020342,2.3213,3421.7,3421.1,3.0]
[1719942020503,2.3213,3421.6,3421.0,3.0]
[1719942021455,2.3213,3421.6,3421.0,5.92307]
[1719942021661,2.3213,3421.6,3421.1,1.049]
[1719942023710,2.4995,3421.5,3421.0,3.0]
[1719942023931,2.4995,3421.5,3420.9,3.0]
[1719942025739,2.4995,3421.5,3420.9,5.92317]
[1719942026129,2.3371,3421.4,3420.9,3.0]
[1719942026321,2.3371,3421.4,3420.8,6.97223]
[1719942026522,2.3371,3421.4,3421.0,1.049]
[1719942027258,2.3371,3421.4,3421.0,4.049]
[1719942033480,2.3371,3421.4,3421.0,6.97211]
[1719942037168,2.3371,3421.4,3421.3,2.92286]
[1719942039495,7.48,3421.8,3421.6,2.9226]
[1719942039496,2.3288,3421.7,3421.6,2.9226]
[1719942039666,2.3288,3422.1,3421.6,3.9716]
[1719942039875,2.3288,3422.1,3422.0,2.92226]
[1719942040456,2.3288,3422.1,3421.8,3.97137]
[1719942042283,2.3288,3422.1,3421.9,2.92228]
[1719942042509,2.3288,3422.1,3422.0,2.92226]
[1719942043426,19.65,3422.7,3422.1,2.92217]
[1719942043556,2.381,3422.6,3422.1,2.92217]
[1719942047995,2.381,3422.6,3422.1,5.84428]
[1719942048894,2.381,3422.6,3422.1,2.92211]
[1719942049846,2.381,3422.6,3422.2,2.92209]
[1719942051964,2.381,3422.6,3422.3,2.92197]
[1719942052237,2.381,3422.6,3422.3,5.84391]
[1719942052812,2.381,3422.6,3422.3,2.92194]
[1719942060048,2.381,3422.6,3422.3,5.8439]
[1719942060353,2.381,3422.6,3422.3,2.92194]
[1719942061222,2.381,3422.6,3422.3,5.84388]
[1719942061423,2.381,3422.6,3422.4,2.92192]
[1719942069663,2.381,3422.6,3422.3,2.92194]
[1719942070283,2.381,3422.6,3422.3,5.84389]
[1719942070483,2.381,3422.6,3422.3,2.92194]
[1719942070876,3.773,3422.6,3422.0,2.92222]
[1719942071059,2.2912,3422.5,3422.0,2.92221]
[1719942071610,2.2912,3422.5,3421.9,2.92231]
[1719942071773,2.2912,3422.5,3422.0,5.92218]
[1719942071970,2.2912,3422.5,3422.1,2.92217]
[1719942073116,2.2912,3422.5,3422.1,0.884448]
[1719942073266,2.3276,3422.9,3422.4,2.92192]
[1719942073908,3.3766,3422.9,3422.4,2.92192]
[1719942074089,2.3276,3422.8,3422.4,2.92192]
[1719942074683,2.3276,3422.8,3422.2,2.92204]
[1719942082505,1.03984897,3422.7,3422.2,2.92204]
[1719942082805,2.3276,3422.8,3422.2,2.92204]
[1719942082977,2.4844,3422.6,3422.2,2.92204]
[1719942085432,1.03984229,3422.5,3422.2,2.92204]
[1719942085588,2.4844,3422.6,3422.2,2.92204]
[1719942085921,1.03983213,3422.5,3422.2,3.506469]
[1719942086138,2.4844,3422.6,3422.2,3.506469]
[1719942086423,1.03979959,3422.5,3422.2,3.506469]
[1719942086589,2.4844,3422.6,3422.2,3.506469]
[1719942086789,1.03979964,3422.5,3422.2,3.506469]
[1719942087008,2.4844,3422.6,3422.2,3.506469]
[1719942087208,1.03979971,3422.5,3422.2,2.92204]
[1719942087414,2.4844,3422.6,3422.2,2.92204]
[1719942087614,1.03980093,3422.5,3422.2,2.92204]
[1719942087809,2.4844,3422.6,3422.2,2.92204]
[1719942087984,1.03980174,3422.5,3422.2,2.92204]
[1719942088188,2.4844,3422.6,3422.2,2.92204]
[1719942088389,1.03980154,3422.5,3422.2,2.92204]
[1719942088604,2.4844,3422.6,3422.2,2.92204]
[1719942088920,1.03980918,3422.5,3422.2,2.92204]
[1719942089130,2.4844,3422.6,3422.2,2.92204]
[1719942089131,1.03980918,3422.4,3422.2,2.92204]
[1719942089287,2.4844,3422.6,3422.2,2.92204]
[1719942089483,1.03987874,3422.5,3422.2,2.92204]
[1719942089689,1.03987858,3422.4,3422.2,2.92204]
[1719942089889,2.4844,3422.6,3422.2,2.92204]
[1719942090128,1.03987588,3422.5,3422.2,2.92204]
[1719942090303,1.03987588,3422.4,3422.2,2.92204]
[1719942090503,2.4844,3422.6,3422.2,2.92204]
[1719942090802,1.0398813,3422.5,3422.2,2.92204]
[1719942091133,1.0398813,3422.4,3422.2,2.92204]
[1719942091331,1.0398813,3422.5,3422.2,2.92204]
[1719942091499,1.03986684,3422.4,3422.2,2.92204]
[1719942091699,2.4844,3422.6,3422.2,2.92204]
[1719942091922,1.03986774,3422.5,3422.2,2.92204]
[1719942092120,1.03986774,3422.4,3422.2,2.92204]
[1719942092331,2.4844,3422.6,3422.2,2.92204]
[1719942092514,1.03987244,3422.5,3422.2,2.92204]
[1719942092700,1.03987244,3422.4,3422.0,5.84443]
[1719942092901,2.4844,3422.6,3422.0,5.84443]
[1719942093101,1.03988881,3422.5,3422.0,5.84443]
[1719942093327,1.03988881,3422.4,3422.1,2.92216]
[1719942093531,2.4844,3422.6,3422.1,2.92216]
[1719942093834,1.03988888,3422.5,3422.1,2.92216]
[1719942094012,1.03988888,3422.4,3422.1,2.92216]
[1719942094334,2.4844,3422.6,3422.0,2.92218]
[1719942094537,2.3168,3422.5,3422.0,2.92218]
[1719942094703,1.03991011,3422.4,3422.0,2.92218]
[1719942097540,1.03991011,3422.4,3421.8,2.92237]
[1719942097841,2.3168,3422.5,3421.9,3.0]
[1719942098006,2.3954,3422.3,3421.9,3.0]
[1719942098200,2.3954,3422.3,3421.7,3.0]
[1719942098407,2.3581,3422.2,3421.6,3.0]
[1719942098814,1.04011364,3422.1,3421.6,3.0]
[1719942099049,2.3581,3422.2,3421.6,3.0]
[1719942099050,1.04018619,3422.0,3421.6,3.0]
[1719942099248,2.3581,3422.2,3421.6,3.0]
[1719942099450,2.3798,3422.0,3421.1,2.92298]
[1719942099615,1.04023193,3421.9,3421.1,2.92296]
[1719942099813,2.3798,3421.7,3421.1,5.84593]
[1719942100013,2.3798,3421.7,3421.1,2.92296]
[1719942100348,2.3798,3421.7,3421.2,2.92295]
[1719942101049,2.3798,3421.7,3421.3,3.0]
[1719942106731,2.3798,3421.7,3421.1,5.92302]
[1719942107566,2.3798,3421.7,3421.1,3.0]
[1719942107767,2.3798,3421.7,3421.0,2.9231]
[1719942107938,2.3798,3421.7,3421.1,3.0]
[1719942111433,5.30234,3421.7,3421.1,3.0]
[1719942111665,2.92264,3421.6,3420.9,3.0]
[1719942111824,2.4849,3421.5,3420.9,3.0]
[1719942113430,2.4849,3421.5,3421.1,1.049]
[1719942113675,2.4849,3421.5,3421.2,0.69722]
[1719942113865,2.4849,3421.5,3421.1,1.049]
[1719942114275,2.4849,3421.5,3420.9,6.9722]
[1719942120306,2.4849,3421.5,3420.9,9.89535]
[1719942121155,2.4849,3421.5,3421.0,2.92309]
[1719942124598,2.4849,3421.5,3420.9,3.0]
[1719942124818,2.4849,3421.5,3420.9,2.92318]
[1719942125509,2.3973,3421.4,3420.7,3.0]
[1719942125717,3.97183,3421.4,3420.7,3.0]
[1719942126023,2.3973,3421.3,3420.7,3.0]
[1719942130568,2.92287,3421.3,3420.7,3.0]
[1719942130772,2.2704,3421.2,3420.6,4.049]
[1719942131713,2.2704,3421.2,3420.6,3.0]
[1719942133422,2.2704,3421.2,3420.6,5.92345]
[1719942133625,2.2704,3421.2,3420.6,3.0]
[1719942137209,2.3209,3421.1,3420.6,3.0]
[1719942137533,2.92312,3421.0,3420.4,3.0]
[1719942138119,5.24393,3421.1,3420.4,3.0]
[1719942138430,8.16703,3421.1,3420.4,3.0]
[1719942138727,2.92312,3421.0,3420.4,3.0]
[1719942139506,5.244,3421.1,3420.4,3.0]
[1719942139729,5.244,3421.1,3420.5,1.049]
[1719942142679,2.3209,3421.1,3420.5,1.049]
[1719942142970,2.3209,3421.1,3420.6,2.92339]
[1719942143160,2.3209,3421.1,3420.7,1.049]
[1719942143463,2.3209,3421.1,3420.7,3.97237]
[1719942144666,2.3209,3421.1,3420.7,2.92337]
[1719942150080,2.3209,3421.1,3420.5,4.9621]
[1719942150279,2.3209,3421.1,3420.6,3.0]
[1719942152165,2.3209,3421.1,3420.5,3.0]
[1719942152986,2.3209,3421.1,3420.5,5.92354]
[1719942155506,2.3209,3421.1,3420.5,9.89601]
[1719942155669,2.3209,3421.1,3420.5,10.885611]
[1719942156308,2.3209,3421.1,3420.5,7.962071]
[1719942156468,2.3209,3421.1,3420.5,6.97247]
[1719942156802,2.3209,3421.1,3420.5,5.92347]
[1719942160780,5.24394,3421.1,3420.5,3.0]
[1719942161002,5.24394,3421.1,3420.4,5.92363]
[1719942161514,5.24394,3421.1,3420.4,6.97263]
[1719942162704,5.24394,3421.1,3420.5,2.92354]
[1719942166552,2.3209,3421.1,3420.5,2.92354]
[1719942166713,2.3209,3421.1,3420.5,3.91316]
[1719942167242,2.3209,3421.1,3420.5,6.83666]
[1719942167544,2.3209,3421.1,3420.5,3.91312]
[1719942169723,2.3209,3421.1,3420.6,2.92345]
[1719942186260,2.3209,3421.1,3420.6,5.84686]
[1719942186606,2.3209,3421.1,3420.6,2.92341]
[1719942186858,2.3209,3421.1,3420.7,2.92336]
[1719942187005,2.3209,3421.1,3420.8,2.92329]
[1719942189550,2.3209,3421.1,3420.9,2.92319]
[1719942191508,2.3209,3421.1,3420.9,5.84631]
[1719942191722,2.3209,3421.1,3420.9,2.92312]
[1719942194210,2.3209,3421.1,3420.7,2.92333]
[1719942194410,2.3209,3421.1,3420.8,2.92324]
[1719942195611,2.3209,3421.1,3420.8,5.84648]
[1719942196871,2.3209,3421.1,3420.9,2.92319]
[1719942218323,2.3209,3421.1,3420.7,2.9233]
[1719942218655,2.3209,3421.1,3420.6,2.9234]
[1719942218656,2.3209,3421.1,3420.8,2.92327]
[1719942219520,2.3209,3421.1,3420.6,2.92339]
[1719942219925,2.3209,3421.1,3420.6,5.8468]
[1719942220259,2.3209,3421.1,3420.6,2.92339]
[1719942220746,2.3209,3421.1,3420.6,5.8468]
[1719942221835,2.3209,3421.1,3420.7,2.92336]
[1719942231068,2.3209,3421.1,3420.9,2.92319]
[1719942239894,2.3209,3421.1,3420.7,2.92336]
[1719942240055,2.3209,3421.1,3420.7,5.84667]
[1719942240256,2.3209,3421.1,3420.7,2.92331]
[1719942241940,2.3209,3421.1,3420.8,2.92326]
[1719942252651,2.3209,3421.1,3420.8,3.97224]
[1719942252997,2.3209,3421.1,3420.8,4.66181]
[1719942253811,2.3209,3421.1,3420.8,3.61281]
[1719942254013,2.3209,3421.1,3420.8,6.53604]
[1719942256152,2.3209,3421.1,3420.8,3.6128]
[1719942258073,2.3209,3421.1,3420.8,6.53602]
[1719942259535,2.3209,3421.1,3420.9,2.9232]
[1719942271984,2.4974,3422.1,3420.9,0.758514]
[1719942272199,1.04059336,3422.0,3421.7,3.97146]
[1719942272399,1.54673538,3421.9,3421.8,2.92243]
[1719942272689,0.50614202,3421.9,3421.8,2.92243]
[1719942273197,0.50609152,3421.9,3421.8,2.92243]
[1719942273485,2.4974,3422.1,3421.8,2.92243]
[1719942273783,0.50608285,3422.0,3421.8,2.92243]
[1719942273975,0.50608285,3421.9,3421.8,2.92243]
[1719942276703,2.4974,3422.1,3421.9,2.92234]
[1719942276996,0.50608158,3422.0,3421.9,2.92234]
[1719942278047,0.50608158,3422.0,3421.7,2.92246]
[1719942278253,0.50608158,3421.9,3421.7,2.92246]
[1719942279190,0.50608158,3421.9,3421.6,2.9226]
[1719942279370,0.50608158,3421.9,3421.7,2.92251]
[1719942279758,0.40524816,3422.0,3421.7,2.92251]
[1719942279987,0.50610361,3421.9,3421.7,2.92251]
[1719942280299,0.40524816,3422.0,3421.7,2.92251]
[1719942280597,2.4974,3422.1,3421.7,2.92251]
[1719942280598,0.50610073,3421.9,3421.7,2.92251]
[1719942280797,3.144237,3422.1,3421.7,2.92251]
[1719942280951,0.50610355,3422.0,3421.7,2.92251]
[1719942281154,0.50610355,3421.9,3421.7,2.92251]
[1719942281395,3.144237,3422.1,3421.7,2.92251]
[1719942281569,0.50610362,3422.0,3421.7,2.92251]
[1719942281774,0.50610362,3421.9,3421.7,2.92251]
[1719942282081,3.144237,3422.1,3421.7,2.92251]
[1719942282276,0.50610365,3422.0,3421.7,2.92251]
[1719942282478,0.50610365,3421.9,3421.7,2.92251]
[1719942282684,3.144237,3422.1,3421.7,2.92251]
[1719942283206,0.50610195,3422.0,3421.7,2.92251]
[1719942283511,3.144237,3422.1,3421.7,2.92251]
[1719942283675,0.50610325,3421.9,3421.7,2.92251]
[1719942283878,0.50610325,3421.9,3419.6,1.57472392]
[1719942283879,0.50611248,3421.8,3421.3,2.92281]
[1719942284061,2.4521,3421.9,3421.3,2.92281]
[1719942284062,2.4521,3421.9,3421.5,2.92267]
[1719942284269,0.50613732,3421.8,3421.5,2.92267]
[1719942284470,0.50613946,3421.7,3421.5,2.92267]
[1719942284698,2.4521,3421.9,3421.5,2.92267]
[1719942284861,0.50613939,3421.8,3421.5,2.92267]
[1719942285066,3.12586537,3421.9,3421.5,2.92267]
[1719942285283,0.50613695,3421.8,3421.5,2.92267]
[1719942285564,3.12586537,3421.9,3421.5,2.92267]
[1719942285882,0.5061311,3421.8,3421.5,2.92267]
[1719942286080,2.3587,3422.4,3421.7,2.92252]
[1719942286506,0.50609552,3422.3,3421.7,2.92252]
[1719942286668,0.50609552,3422.2,3421.7,2.92252]
[1719942286885,0.50609552,3422.1,3421.7,5.84497]
[1719942287117,0.50609552,3422.0,3421.7,5.84497]
[1719942287415,0.925143,3422.3,3421.7,5.84497]
[1719942287581,0.50608964,3422.2,3421.7,5.84497]
[1719942287921,0.50608964,3422.1,3421.7,5.84497]
[1719942288100,0.50608964,3422.2,3421.7,5.84497]
[1719942288422,0.925143,3422.3,3421.7,5.84497]
[1719942288423,0.50608964,3422.1,3421.7,5.84497]
[1719942288628,0.50608964,3422.2,3421.7,5.84497]
[1719942288915,0.50608964,3422.1,3421.7,5.84497]
[1719942289117,0.50608964,3422.2,3421.8,2.92242]
[1719942289328,5.28064,3422.4,3421.8,2.92242]
[1719942289556,0.50609029,3422.1,3421.8,2.92242]
[1719942289821,0.50609029,3422.0,3421.8,2.92242]
[1719942290126,5.28064,3422.4,3421.8,2.92242]
[1719942290295,0.50609088,3422.3,3421.8,2.92242]
[1719942290478,0.50609088,3422.2,3421.8,2.92242]
[1719942290681,0.50609088,3422.1,3421.8,2.92242]
[1719942291016,6.205783,3422.4,3421.8,2.92242]
[1719942291017,0.50609088,3422.0,3421.8,2.92242]
[1719942291208,5.28064,3422.4,3421.8,2.92242]
[1719942291405,1.43123375,3422.3,3421.8,2.92242]
[1719942291605,0.50609075,3422.2,3421.8,2.92242]
[1719942292280,0.50609075,3422.1,3421.8,2.92242]
[1719942292486,5.28064,3422.4,3421.8,2.92242]
[1719942292686,0.50609082,3422.0,3421.8,2.92242]
[1719942292938,5.28064,3422.4,3421.8,2.92242]
[1719942293099,0.50608927,3422.3,3421.8,2.92242]
[1719942293304,0.50608927,3422.2,3421.8,2.92242]
[1719942293630,5.28064,3422.4,3421.8,2.92242]
[1719942293631,0.50608927,3422.1,3421.8,2.92242]
[1719942293785,0.50608927,3422.0,3421.8,2.92242]
[1719942293988,5.28064,3422.4,3421.8,2.92242]
[1719942294284,0.50608369,3422.3,3421.8,2.92242]
[1719942294490,0.50608369,3422.2,3421.8,2.92242]
[1719942294687,0.50608369,3422.1,3421.8,2.92242]
[1719942294924,0.50608369,3422.0,3421.8,2.92242]
[1719942295127,2.3587,3422.4,3421.8,2.92242]
[1719942295340,0.50607768,3422.3,3421.8,2.92242]
[1719942295501,0.50607768,3422.2,3421.9,2.92229]
[1719942295703,2.3587,3422.4,3421.9,2.92229]
[1719942296013,0.50607328,3422.3,3421.9,2.92229]
[1719942296328,0.50607109,3422.2,3421.9,2.92229]
[1719942296524,0.50607109,3422.1,3421.9,5.84458]
[1719942296691,0.50607109,3422.3,3421.9,5.84458]
[1719942298830,0.50607109,3422.3,3422.0,2.92225]
[1719942299131,0.50606497,3422.2,3422.0,2.92225]
[1719942299426,0.50606497,3422.1,3422.0,2.92225]
[1719942299630,0.50606497,3422.3,3422.0,3.844094]
[1719942299930,0.50606497,3422.2,3422.0,3.844094]
[1719942300133,0.50606497,3422.1,3422.0,2.92225]
[1719942301491,2.2798,3422.6,3422.0,2.92225]
[1719942301704,0.50605695,3422.1,3422.0,2.92225]
[1719942304811,2.4193,3422.2,3422.0,2.92225]
[1719942305125,0.50607931,3422.1,3422.0,2.92225]
[1719942305546,0.50607931,3422.1,3421.9,2.92233]
[1719942305835,0.50607931,3422.0,3421.9,2.92233]
[1719942306496,0.50607931,3422.1,3421.9,5.84461]
[1719942306708,0.50607931,3422.0,3421.9,2.92228]
[1719942306909,2.4193,3422.2,3421.9,5.84456]
[1719942306910,0.50607931,3422.1,3421.9,5.84456]
[1719942307128,0.50607931,3422.0,3421.9,2.92228]
[1719942308095,0.50607884,3422.0,3421.9,2.92228]
[1719942308633,0.5060806,3422.0,3421.9,2.92228]
[1719942310063,0.5060806,3422.0,3421.6,2.92258]
[1719942310224,2.9268806,3421.9,3421.6,2.92258]
[1719942310427,0.5060806,3421.8,3421.6,2.92256]
[1719942311260,2.4208,3421.9,3421.6,2.92256]
[1719942311261,0.50611084,3421.7,3421.6,2.92256]
[1719942311754,0.5061108,3421.7,3421.6,2.92256]
[1719942313272,0.5061108,3421.7,3421.6,3.844467]
[1719942314040,0.5061108,3421.7,3421.6,6.767067]
[1719942314236,2.4965,3422.3,3421.8,2.92242]
[1719942314569,0.50609622,3422.2,3421.8,2.92242]
[1719942314753,0.50609622,3422.1,3421.8,2.92242]
[1719942314954,0.50609622,3422.0,3421.8,2.92242]
[1719942315153,0.50609622,3421.9,3421.8,2.92242]
[1719942317639,2.4965,3422.3,3421.8,2.92242]
[1719942317841,0.50609212,3422.2,3421.8,2.92242]
[1719942318038,0.50609212,3422.1,3421.9,2.92235]
[1719942318248,0.50609212,3422.0,3421.9,2.92235]
[1719942320939,0.50608763,3422.0,3421.9,2.92235]
[1719942321366,2.4965,3422.3,3421.9,2.92235]
[1719942321581,0.50608766,3422.2,3421.9,2.92235]
[1719942321938,0.50608766,3422.2,3422.0,2.92218]
[1719942322344,0.50608766,3422.1,3422.0,2.92218]
[1719942324055,2.2975,3422.5,3422.1,2.92217]
[1719942324381,1.01212041,3422.4,3422.1,2.92217]
[1719942324587,0.50605942,3422.3,3422.1,2.92217]
[1719942327490,0.50605471,3422.2,3422.1,2.92217]
[1719942327893,1.01211381,3422.2,3422.1,2.92217]
[1719942330094,0.5060591,3422.2,3422.1,2.92217]
[1719942330467,0.5060591,3422.2,3421.7,2.92247]
[1719942330793,0.50607885,3422.1,3421.7,2.92248]
[1719942330965,0.50607885,3422.1,3421.5,3.97167]
[1719942330966,2.2904,3422.2,3422.0,2.92226]
[1719942331168,0.50608621,3422.1,3422.0,2.92226]
[1719942333089,2.2904,3422.2,3422.0,2.92226]
[1719942333292,0.50608676,3422.1,3422.0,2.92226]
[1719942334058,0.50608664,3422.1,3421.6,2.92254]
[1719942334290,1.049,3422.3,3421.6,2.92254]
[1719942334291,2.88848664,3422.0,3421.6,2.92254]
[1719942334492,2.3824,3422.0,3421.6,2.92254]
[1719942334695,0.50610916,3421.9,3421.6,2.92254]
[1719942334903,0.50610916,3421.8,3421.7,2.9225]
[1719942335057,0.50610916,3421.9,3421.7,2.9225]
[1719942335260,2.3824,3422.0,3421.7,2.9225]
[1719942335261,0.50610916,3421.8,3421.7,2.9225]
[1719942337199,0.50610448,3421.8,3421.7,2.9225]
[1719942340365,2.3824,3422.0,3421.7,2.9225]
[1719942340704,0.50611061,3421.9,3421.7,2.9225]
[1719942340907,0.50611061,3421.8,3421.6,2.92259]
[1719942341203,0.50611061,3421.7,3421.6,2.92259]
[1719942341503,0.50611061,3421.7,3421.2,2.9229]
[1719942341720,0.50611061,3421.6,3421.2,3.21519]
[1719942343772,2.4806,3421.7,3421.2,3.21519]
[1719942343968,0.50616864,3421.6,3421.2,3.21519]
[1719942344277,0.50616864,3421.5,3421.2,3.21519]
[1719942344603,0.50616864,3421.4,3421.2,3.21519]
[1719942344803,0.50616864,3421.3,3421.2,3.21519]
[1719942345006,0.50616864,3421.3,3421.2,5.9229]
[1719942345309,2.4806,3421.7,3421.2,5.9229]
[1719942345517,0.50616842,3421.6,3421.2,5.9229]
[1719942345811,0.50616842,3421.5,3421.2,6.9719]
[1719942345998,0.50616842,3421.4,3421.2,7.961391]
[1719942346171,2.4806,3421.7,3421.3,2.92283]
[1719942346372,0.50615428,3421.6,3421.3,2.92283]
[1719942346568,0.50615428,3421.5,3421.3,2.92283]
[1719942346804,2.2738,3421.9,3421.5,2.92268]
[1719942347033,0.50613589,3421.8,3421.5,2.92268]
[1719942347196,0.50613589,3421.7,3421.5,2.92268]
[1719942347401,2.2738,3421.9,3421.5,2.92268]
[1719942347618,0.50612278,3421.8,3421.5,2.92268]
[1719942347820,0.50612278,3421.7,3421.5,2.92268]
[1719942348005,7.48,3422.0,3421.5,4.02097431]
[1719942348224,0.50611256,3421.9,3421.5,2.92268]
[1719942348423,0.50611256,3421.8,3421.5,5.84531]
[1719942348639,0.50611256,3422.0,3421.5,5.84531]
[1719942349601,0.50611256,3422.0,3421.5,2.92263]
[1719942350305,2.3396,3422.1,3421.5,2.92263]
[1719942350513,0.50611415,3422.0,3421.5,2.92263]
[1719942351514,2.3396,3422.1,3421.5,2.92263]
[1719942351718,0.50612265,3422.0,3421.5,2.92263]
[1719942353242,0.50612265,3422.0,3421.5,5.84527]
[1719942353446,2.3396,3422.1,3421.5,5.84527]
[1719942353604,2.3396,3422.1,3421.5,2.92263]
[1719942353605,0.50612087,3421.9,3421.5,2.92263]
[1719942353805,0.50612087,3421.8,3421.5,2.92263]
[1719942354005,0.50612087,3422.0,3421.5,2.92263]
[1719942357133,0.50612087,3422.0,3421.5,5.84526]
[1719942358550,0.50612087,3422.0,3421.6,2.9226]
[1719942360010,0.50612959,3421.9,3421.6,2.9226]
[1719942360245,0.50612959,3421.8,3421.6,2.9226]
[1719942360546,0.5061231,3421.7,3421.6,2.9226]
[1719942360912,0.5061231,3421.7,3421.6,6.95264806]
[1719942361247,9.7982,3422.4,3421.9,2.9223]
[1719942361562,0.50607885,3422.3,3421.9,2.9223]
[1719942361764,0.50607885,3422.2,3421.9,2.9223]
[1719942362054,0.50607885,3422.1,3421.9,2.9223]
[1719942362225,9.7982,3422.4,3421.9,2.9223]
[1719942362226,0.50607885,3422.0,3421.9,2.9223]
[1719942362557,0.50606964,3422.0,3421.9,2.9223]
[1719942363549,0.50606959,3422.0,3421.9,2.9223]
[1719942365454,0.50606959,3422.0,3421.9,3.70418748]
[1719942365689,7.48,3422.4,3421.9,6.62648748]
[1719942365960,0.50606941,3422.3,3421.9,5.84458]
[1719942366128,0.50606941,3422.2,3421.9,2.92228]
[1719942366334,0.50606941,3422.1,3422.0,2.92226]
[1719942368844,7.48,3422.4,3422.1,2.92216]
[1719942369029,0.5060599,3422.3,3422.1,2.92216]
[1719942369353,0.5060599,3422.2,3422.1,2.92216]
[1719942369573,0.5060599,3422.3,3422.1,2.92216]
[1719942369765,0.5060599,3422.2,3422.1,2.92216]
[1719942369970,0.5060599,3422.5,3422.1,2.92216]
[1719942370176,0.5060599,3422.4,3422.1,2.92216]
[1719942370371,0.5060599,3422.5,3422.1,2.92216]
[1719942370572,0.5060599,3422.3,3422.1,2.92216]
[1719942370771,2.4251,3422.6,3422.1,2.92216]
[1719942370772,0.5060599,3422.2,3422.1,2.92216]
[1719942372164,0.5060697,3422.2,3422.1,2.92216]
[1719942372570,0.50606445,3422.2,3422.1,2.92216]
[1719942375276,2.4251,3422.6,3422.2,2.92204]
[1719942375571,0.50602353,3422.5,3422.2,2.92204]
[1719942375867,0.50602353,3422.4,3422.2,2.92204]
[1719942376091,0.50602353,3422.5,3422.2,2.92204]
[1719942376249,0.50602353,3422.3,3422.2,2.92204]
[1719942376583,0.50602353,3422.5,3422.2,2.92204]
[1719942378472,0.50603265,3422.4,3422.2,2.92204]
[1719942378978,0.50603265,3422.3,3422.2,2.92204]
[1719942381670,2.4251,3422.6,3422.2,2.92204]
[1719942381981,0.506035,3422.5,3422.2,2.92204]
[1719942385051,0.50603783,3422.4,3422.2,2.92204]
[1719942385257,0.50603783,3422.3,3422.2,2.92204]
[1719942385452,2.4251,3422.6,3422.2,2.92204]
[1719942385682,0.50603573,3422.3,3422.2,2.92204]
[1719942385895,0.50604092,3422.5,3422.2,2.92204]
[1719942388090,2.4251,3422.6,3422.2,2.92204]
[1719942388293,0.50604205,3422.5,3422.2,2.92204]
[1719942388484,0.50604344,3422.4,3422.2,2.92204]
[1719942388799,0.50604344,3422.3,3422.2,2.92204]
[1719942389007,0.50604344,3422.5,3422.4,2.92192]
[1719942389172,7.48,3422.8,3422.6,2.92168]
[1719942389363,0.50603369,3422.7,3422.6,2.92168]
[1719942391302,2.4919,3423.0,3422.6,2.92168]
[1719942391505,1.54587867,3422.9,3422.6,2.92168]
[1719942391809,1.54587867,3422.8,3422.4,5.84373]
[1719942392015,1.54591256,3422.7,3422.4,2.92186]
[1719942392214,2.913231,3422.6,3422.2,2.92201]
[1719942392440,0.506031,3422.5,3422.3,2.92194]
[1719942392661,0.506031,3422.5,3422.4,2.92192]
[1719942393318,2.4072,3422.6,3422.4,2.92192]
[1719942393536,0.50603217,3422.5,3422.4,2.92192]
[1719942395023,0.50603229,3422.5,3422.4,2.92192]
[1719942396129,0.50603216,3422.5,3422.4,2.92192]
[1719942399441,0.50603316,3422.5,3422.4,2.92192]
[1719942399761,2.2617,3422.8,3422.4,2.92192]
[1719942400065,1.54588933,3422.7,3422.4,2.92192]
[1719942400255,0.50603338,3422.6,3422.4,2.92192]
[1719942400459,0.50603338,3422.5,3422.4,2.92192]
[1719942400659,0.50603338,3422.5,3422.2,5.84403]
[1719942400858,0.50603338,3422.4,3422.3,2.92196]
[1719942401043,0.50603338,3422.7,3422.3,2.92196]
[1719942401381,0.50603338,3422.6,3422.3,2.92196]
[1719942401684,0.50603338,3422.5,3422.3,2.92196]
[1719942401834,0.50603338,3422.7,3422.3,2.92196]
[1719942402435,2.2871,3422.6,3422.1,2.92216]
[1719942402674,2.2871,3422.6,3422.1,5.84429]
[1719942402675,2.793162,3422.6,3422.1,5.84429]
[1719942403168,0.50604366,3422.5,3422.1,5.84429]
[1719942403374,0.50604366,3422.4,3422.1,5.84429]
[1719942403572,0.50604366,3422.3,3422.2,2.92209]
[1719942405768,2.2871,3422.6,3422.2,2.92209]
[1719942405967,0.50604167,3422.3,3422.2,2.92209]
[1719942409047,0.50604839,3422.3,3422.2,2.92209]
[1719942410468,0.50604839,3422.3,3422.0,2.92218]
[1719942410775,0.50604839,3422.2,3422.1,2.92216]
[1719942411003,0.50604839,3422.5,3422.1,2.92216]
[1719942411167,0.50604839,3422.4,3422.1,2.92216]
[1719942411506,0.50604839,3422.3,3422.1,2.92216]
[1719942411718,0.50604839,3422.5,3422.1,3.843996]
[1719942412004,0.50604839,3422.4,3422.1,3.843996]
[1719942412364,0.50604191,3422.3,3422.1,3.843996]
[1719942412607,0.50604191,3422.2,3422.1,2.92216]
[1719942412770,2.2871,3422.6,3422.1,5.84428]
[1719942412966,0.506042,3422.2,3422.1,5.84428]
[1719942413299,2.2871,3422.6,3422.2,2.92207]
[1719942413506,0.50603814,3422.5,3422.2,2.92207]
[1719942413804,0.50603814,3422.4,3422.2,2.92207]
[1719942413964,5.33851,3422.9,3422.2,2.92207]
[1719942413965,0.50603814,3422.3,3422.2,2.92207]
[1719942415382,2.417,3422.9,3422.2,3.97107]
[1719942415621,0.50603509,3422.3,3422.2,6.89316]
[1719942415773,2.417,3422.9,3422.4,2.92191]
[1719942415970,0.5060337,3422.8,3422.4,2.92191]
[1719942416169,0.5060337,3422.7,3422.4,2.92191]
[1719942416463,0.5060337,3422.6,3422.4,4.886828]
[1719942416665,0.5060337,3422.5,3422.4,10.081148]
[1719942416907,0.5060337,3422.5,3422.4,9.1652]